bitfinex/quotes_ETHUSD_20241024
["timestamp","ask_amount","ask_price","bid_price","bid_amount"]
[1729812510921,5.56539113,2531.9,2531.8,0.823]
[1729812514335,5.61449754,2531.9,2531.8,0.823]
[1729812514824,5.61449754,2531.9,2531.5,0.82737349]
[1729812514993,3.95007,2531.6,2531.4,0.82737349]
[1729812515189,0.04899424,2531.5,2531.4,0.82737349]
[1729812515389,0.04899424,2531.5,2531.4,1.88562434]
[1729812516409,0.04899424,2531.5,2531.4,1.96462133]
[1729812518023,3.95007,2531.6,2531.5,0.8004]
[1729812520635,3.9497,2531.9,2531.5,0.8004]
[1729812520801,3.9497,2531.9,2531.7,0.8004]
[1729812520999,3.94975,2531.8,2531.7,0.8004]
[1729812522933,3.94975,2531.8,2531.6,0.82737349]
[1729812522934,3.94991,2531.7,2531.6,0.82737349]
[1729812523140,3.95022,2531.5,2531.2,0.82737349]
[1729812523298,4.72505,2531.1,2530.9,0.82737349]
[1729812523498,3.95116,2530.9,2530.7,0.82737349]
[1729812523698,3.95147,2530.7,2530.6,1.62777349]
[1729812524220,3.95129,2530.9,2530.6,1.62777349]
[1729812524395,3.95131,2530.8,2530.6,0.8004]
[1729812525397,3.95147,2530.7,2530.6,0.8004]
[1729812525740,3.95178,2530.5,2530.4,0.8004]
[1729812526425,3.95142,2530.8,2530.4,0.8004]
[1729812526611,3.95151,2530.7,2530.5,0.07902558]
[1729812527137,3.95163,2530.6,2530.5,0.07902558]
[1729812527437,3.95163,2530.6,2530.4,2.82745733]
[1729812527793,3.95163,2530.6,2530.4,1.2116862]
[1729812528225,3.95148,2530.7,2530.4,2.82745733]
[1729812528625,3.95127,2530.9,2530.5,1.89851686]
[1729812528838,3.95127,2530.9,2530.6,0.07902156]
[1729812529337,0.04599455,2530.8,2530.6,0.07902156]
[1729812530037,0.04599455,2530.8,2530.5,0.28274573]
[1729812530038,3.99734455,2530.8,2530.5,0.28274573]
[1729812532545,3.95178,2530.5,2530.4,0.8004]
[1729812532697,5.56755113,2530.5,2530.2,0.8158]
[1729812532898,3.99778758,2530.5,2530.2,0.8158]
[1729812533111,3.95194,2530.4,2530.2,1.75420011]
[1729812533404,0.04594396,2530.3,2530.2,0.8158]
[1729812533605,7.90365,2530.5,2530.2,0.8158]
[1729812533835,0.04603458,2530.4,2530.2,0.8158]
[1729812534337,3.99800458,2530.4,2530.2,0.8158]
[1729812534633,0.04603458,2530.4,2530.2,0.8158]
[1729812535718,3.95248,2530.1,2529.9,0.61857709]
[1729812536053,0.04584727,2530.0,2529.7,4.8501818]
[1729812536750,3.99842727,2530.0,2529.7,4.8501818]
[1729812538055,3.99842727,2530.0,2529.7,6.46595293]
[1729812538415,3.95288,2529.8,2529.4,0.8158]
[1729812538624,0.04572864,2529.7,2529.4,2.43157113]
[1729812538926,3.95288,2529.8,2529.5,2.25429024]
[1729812539144,0.04545869,2529.6,2529.5,2.25429024]
[1729812539349,3.95288,2529.8,2529.5,2.25429024]
[1729812539561,0.04524958,2529.6,2529.5,2.25429024]
[1729812539718,3.95288,2529.8,2529.5,2.25429024]
[1729812540146,0.04527768,2529.7,2529.5,2.25429024]
[1729812540455,3.95288,2529.8,2529.6,0.07905336]
[1729812540655,3.95335,2529.5,2529.4,0.8158]
[1729812540818,0.04524374,2529.6,2529.4,0.8158]
[1729812540819,3.95319,2529.6,2529.4,0.8158]
[1729812541014,0.04521564,2529.5,2529.4,0.8158]
[1729812541356,0.04521564,2529.5,2529.1,0.8158]
[1729812541357,3.99856564,2529.5,2529.1,0.8158]
[1729812541575,0.04521564,2529.5,2529.3,1.61577113]
[1729812541851,0.04521564,2529.5,2529.4,2.51063293]
[1729812542868,3.95304,2529.7,2529.4,2.51063293]
[1729812543053,0.04521564,2529.5,2529.4,2.51063293]
[1729812543257,3.95304,2529.7,2529.4,2.51063293]
[1729812543413,0.04370035,2529.5,2529.4,2.51063293]
[1729812543613,3.95304,2529.7,2529.4,3.20477642]
[1729812543960,0.04372845,2529.6,2529.4,3.20477642]
[1729812544419,3.99692845,2529.6,2529.4,3.20477642]
[1729812544754,0.04372845,2529.6,2529.4,2.51063293]
[1729812545056,3.95304,2529.7,2529.4,2.51063293]
[1729812545230,0.04370035,2529.5,2529.4,2.51063293]
[1729812545619,3.95304,2529.7,2529.4,2.51063293]
[1729812545846,0.04372845,2529.6,2529.4,2.51063293]
[1729812546054,0.04372845,2529.6,2529.4,3.20476842]
[1729812547059,0.04372845,2529.6,2529.4,1.58899729]
[1729812548650,0.04372845,2529.6,2529.4,3.20476842]
[1729812548839,0.04372845,2529.6,2529.5,1.61577113]
[1729812549042,3.95297,2529.8,2529.5,1.61577113]
[1729812549243,3.95297,2529.8,2529.6,0.7948773]
[1729812549842,3.95297,2529.8,2529.6,0.07905346]
[1729812551285,4.75267,2530.0,2529.6,1.61577113]
[1729812551458,3.95283,2529.9,2529.7,0.07905038]
[1729812551656,3.95283,2529.9,2529.6,1.61577113]
[1729812552659,3.9529,2529.8,2529.6,1.61577113]
[1729812552887,3.9529,2529.8,2529.4,7.07909662]
[1729812553179,0.8,2530.0,2529.6,1.61577113]
[1729812553180,3.95256,2530.0,2529.6,1.61577113]
[1729812553479,3.95252,2530.1,2529.7,1.69482076]
[1729812553679,0.8231,2530.2,2529.7,0.07904963]
[1729812553680,3.95272,2529.9,2529.7,0.07904963]
[1729812554816,3.95258,2530.0,2529.7,2.47222076]
[1729812555018,3.9525,2530.1,2529.7,2.47222076]
[1729812555329,3.95257,2530.0,2529.7,3.11476084]
[1729812556125,3.9525,2530.1,2529.7,3.11476084]
[1729812556480,3.9525,2530.1,2529.7,1.49898971]
[1729812556778,7.90502,2530.1,2529.7,3.11476084]
[1729812556994,0.8231,2530.2,2529.8,1.61577113]
[1729812557312,0.8231,2530.2,2529.9,2.00628941]
[1729812557313,3.95238,2530.2,2529.9,2.00628941]
[1729812558103,3.95244,2530.1,2529.9,2.00628941]
[1729812558305,7.90495,2530.1,2529.9,0.39051828]
[1729812558507,7.90495,2530.1,2529.9,0.0790422]
[1729812558805,3.95244,2530.1,2529.9,0.0790422]
[1729812559005,0.04362212,2530.0,2529.9,0.0790422]
[1729812559392,0.04362212,2530.0,2529.9,1.69481333]
[1729812559607,0.04362212,2530.0,2529.9,2.47221333]
[1729812559784,3.95198,2530.4,2530.0,3.95256]
[1729812559988,3.95191,2530.5,2530.3,1.61577113]
[1729812559989,3.95187,2530.5,2530.3,1.61577113]
[1729812560184,3.95187,2530.5,2530.2,0.7774]
[1729812560523,3.95187,2530.5,2530.2,2.39317113]
[1729812560680,3.95187,2530.5,2530.2,3.02773624]
[1729812561317,7.90377,2530.5,2530.2,1.41196511]
[1729812561480,3.95187,2530.5,2530.2,1.41196511]
[1729812562027,7.90374,2530.5,2530.2,1.41196511]
[1729812562420,7.90374,2530.5,2530.2,3.02773624]
[1729812562421,3.95187,2530.5,2530.2,3.02773624]
[1729812562601,3.95187,2530.5,2530.3,0.30277362]
[1729812563922,7.90378,2530.5,2530.3,0.30277362]
[1729812565935,3.95187,2530.5,2530.3,0.30277362]
[1729812566123,3.95187,2530.5,2530.3,1.99757697]
[1729812566318,3.95187,2530.5,2530.4,0.34095421]
[1729812566834,3.95187,2530.5,2530.2,0.7774]
[1729812567540,3.95195,2530.4,2530.2,0.7774]
[1729812567897,3.9518,2530.5,2530.2,0.7774]
[1729812568235,3.95163,2530.6,2530.3,0.07903383]
[1729812568413,7.90337,2530.6,2530.3,0.07903383]
[1729812568613,3.95181,2530.5,2530.3,0.07903383]
[1729812568811,4.73703,2530.8,2530.3,0.07903383]
[1729812569038,3.95164,2530.6,2530.3,1.94202546]
[1729812569251,3.95148,2530.7,2530.3,1.94202546]
[1729812569550,5.56710113,2530.8,2530.4,0.813]
[1729812569750,3.95147,2530.7,2530.5,0.07902418]
[1729812570518,3.95133,2530.8,2530.5,0.07902418]
[1729812570729,3.95133,2530.8,2530.5,0.35452576]
[1729812571138,7.90278,2530.8,2530.5,0.35452576]
[1729812571851,3.95133,2530.8,2530.5,0.35452576]
[1729812572219,7.9028,2530.8,2530.5,0.35452576]
[1729812572419,3.95133,2530.8,2530.5,0.35452576]
[1729812572821,3.95111,2531.0,2530.6,2.42877113]
[1729812573017,3.95125,2530.9,2530.7,0.75252242]
[1729812573263,3.95127,2530.9,2530.7,0.07901773]
[1729812573422,3.95127,2530.9,2530.6,0.813]
[1729812574115,0.0428867,2530.8,2530.6,0.813]
[1729812577387,0.0428867,2530.8,2530.7,0.07901947]
[1729812577767,3.95116,2530.9,2530.7,0.07901947]
[1729812577970,0.0428867,2530.8,2530.7,0.07901947]
[1729812578555,0.0428867,2530.8,2530.6,0.813]
[1729812578795,0.0428867,2530.8,2530.6,1.47861027]
[1729812582693,3.9942067,2530.8,2530.6,1.47861027]
[1729812583375,3.95147,2530.7,2530.3,0.8086]
[1729812583562,3.95147,2530.7,2530.3,6.37645113]
[1729812583872,0.04223296,2530.6,2530.4,1.61577113]
[1729812584068,0.04223296,2530.6,2530.3,6.37645113]
[1729812584267,3.95133,2530.8,2530.3,6.37645113]
[1729812584476,0.04220489,2530.5,2530.3,7.4918729]
[1729812584675,3.95133,2530.8,2530.3,7.4918729]
[1729812584875,0.04217681,2530.4,2530.3,7.4918729]
[1729812585076,3.95133,2530.8,2530.3,7.4918729]
[1729812585288,0.04217681,2530.4,2530.3,7.4918729]
[1729812585471,3.95133,2530.8,2530.3,7.4918729]
[1729812585677,3.95133,2530.8,2530.4,1.14440129]
[1729812589067,0.04226103,2530.7,2530.4,1.14440129]
[1729812589266,3.95133,2530.8,2530.4,1.14440129]
[1729812589603,0.04226103,2530.7,2530.4,1.14440129]
[1729812590093,0.04223296,2530.6,2530.4,1.14440129]
[1729812590300,0.04223296,2530.6,2530.5,0.75208524]
[1729812590488,3.95133,2530.8,2530.5,0.75208524]
[1729812590687,0.04223296,2530.6,2530.4,1.14440129]
[1729812590894,3.95133,2530.8,2530.4,1.14440129]
[1729812591076,0.04220489,2530.5,2530.4,1.14440129]
[1729812591282,7.90275,2530.8,2530.4,1.14440129]
[1729812591816,3.95179,2530.5,2530.3,0.8086]
[1729812592021,0.04217681,2530.4,2530.3,0.8086]
[1729812592219,0.04217681,2530.4,2530.1,5.42417113]
[1729812592927,0.04217681,2530.4,2530.2,0.0790309]
[1729812593419,0.04217681,2530.4,2530.1,9.37656113]
[1729812593622,0.04217681,2530.4,2530.2,3.03942808]
[1729812593822,0.04217681,2530.4,2530.2,1.42365695]
[1729812594121,0.04217681,2530.4,2530.3,0.0790309]
[1729812595399,0.04217681,2530.4,2530.3,1.69480203]
[1729812596419,0.04217681,2530.4,2530.3,0.0790309]
[1729812596627,3.95164,2530.6,2530.3,0.0790309]
[1729812596925,0.04220489,2530.5,2530.3,0.0790309]
[1729812599945,0.04220489,2530.5,2530.3,1.69480203]
[1729812600240,0.04220489,2530.5,2530.3,0.0790309]
[1729812601441,4.75844,2530.4,2530.2,0.82562657]
[1729812601611,0.8065,2530.4,2530.1,0.82562657]
[1729812601806,4.75853,2530.4,2530.0,0.82562657]
[1729812602025,0.8065,2530.4,2530.1,2.52043332]
[1729812602205,0.8065,2530.4,2530.1,0.90466219]
[1729812602624,0.8065,2530.4,2530.1,0.82562657]
[1729812602911,4.75847,2530.4,2530.1,0.82562657]
[1729812604749,3.95215,2530.3,2530.1,0.82562657]
[1729812605628,4.75875,2530.2,2530.1,0.82562657]
[1729812605825,4.75875,2530.2,2530.0,0.07904324]
[1729812605826,5.79141711,2530.2,2530.0,0.07904324]
[1729812606148,4.75875,2530.2,2530.0,0.82562657]
[1729812606347,4.75875,2530.2,2529.8,6.80709098]
[1729812606348,4.75875,2530.2,2529.9,0.90466879]
[1729812607279,8.71111,2530.2,2529.9,0.82562657]
[1729812607447,4.75875,2530.2,2529.9,0.82562657]
[1729812607971,4.75875,2530.2,2529.9,2.4413977]
[1729812608135,4.75875,2530.2,2529.9,0.82562657]
[1729812608767,4.75875,2530.2,2530.0,0.07904225]
[1729812608946,4.75875,2530.2,2529.9,0.82562657]
[1729812609347,4.75875,2530.2,2529.9,2.4413977]
[1729812610045,4.75875,2530.2,2529.9,0.82562657]
[1729812610468,4.75875,2530.2,2530.0,0.07904227]
[1729812610776,3.9525,2530.1,2529.9,0.82562657]
[1729812610934,3.9525,2530.1,2529.6,2.04683985]
[1729812610935,3.95256,2530.0,2529.8,0.82562657]
[1729812611131,3.95256,2530.0,2529.7,0.82562657]
[1729812611384,2.42227113,2530.2,2529.7,0.82562657]
[1729812611385,3.95288,2529.8,2529.7,0.82562657]
[1729812611536,3.95317,2529.7,2529.5,0.82562657]
[1729812611882,3.95319,2529.6,2529.5,0.82562657]
[1729812612168,3.9535,2529.4,2529.3,0.82562657]
[1729812612532,3.9535,2529.4,2529.2,0.07906621]
[1729812613178,3.9535,2529.4,2529.1,2.4413977]
[1729812613332,3.95337,2529.5,2529.1,0.82562657]
[1729812613333,3.95381,2529.2,2529.1,0.82562657]
[1729812613538,3.95366,2529.3,2529.0,0.82562657]
[1729812613734,3.95366,2529.3,2529.1,0.07907044]
[1729812613965,3.95346,2529.5,2529.1,1.69484157]
[1729812614147,3.95346,2529.5,2529.2,1.61577113]
[1729812614371,3.95343,2529.5,2529.2,1.61577113]
[1729812614684,0.801,2529.6,2529.3,1.69483822]
[1729812614983,0.801,2529.8,2529.5,1.61577113]
[1729812615184,0.801,2530.0,2529.6,2.25175178]
[1729812615387,0.801,2530.0,2529.6,0.63598065]
[1729812615586,0.801,2530.0,2529.6,2.25175178]
[1729812616101,4.75364,2530.0,2529.6,2.25175178]
[1729812616247,4.75364,2530.0,2529.6,0.63598065]
[1729812616454,0.801,2530.2,2529.7,1.22463307]
[1729812616649,3.95248,2530.1,2529.8,0.07904431]
[1729812616849,4.75326,2530.2,2529.7,4.71858]
[1729812617085,4.75326,2530.2,2529.8,0.60659441]
[1729812617865,0.03997759,2530.1,2529.8,0.60659441]
[1729812618078,0.03997759,2530.1,2529.8,4.55944441]
[1729812618490,3.95213,2530.3,2529.8,4.55944441]
[1729812619168,3.95213,2530.3,2529.9,0.92780244]
[1729812619169,0.0399731,2530.2,2529.9,0.92780244]
[1729812619490,4.75307,2530.4,2530.0,0.07904121]
[1729812619687,0.03997294,2530.1,2530.0,4.03158121]
[1729812619899,3.95207,2530.4,2530.0,1.02299864]
[1729812620078,3.95179,2530.5,2530.1,0.7657]
[1729812620283,3.95179,2530.5,2530.2,0.07903511]
[1729812620679,3.95195,2530.4,2530.2,0.07903511]
[1729812621086,0.0400555,2530.3,2530.2,0.07903511]
[1729812621572,7.90372,2530.5,2530.2,0.07903511]
[1729812621770,0.03999618,2530.3,2530.2,0.07903511]
[1729812621978,3.95179,2530.5,2530.2,0.07903511]
[1729812622380,0.04005555,2530.4,2530.2,0.07903511]
[1729812622616,0.04005555,2530.4,2530.2,0.55875462]
[1729812622854,0.04005555,2530.4,2530.2,4.51095462]
[1729812623122,3.95127,2530.9,2530.3,3.9521]
[1729812623123,3.95133,2530.8,2530.3,3.9521]
[1729812623277,0.04021056,2530.3,2530.2,0.47971951]
[1729812623483,3.95149,2530.7,2530.3,3.95209]
[1729812623879,0.04029478,2530.6,2530.3,3.95209]
[1729812624081,0.04029478,2530.6,2530.4,0.07902371]
[1729812624313,3.95132,2530.8,2530.4,0.07902371]
[1729812624513,0.04041093,2530.5,2530.4,4.48204703]
[1729812624702,8.70323,2530.9,2530.4,0.53010703]
[1729812625122,0.04049514,2530.8,2530.4,0.53010703]
[1729812625616,3.99184514,2530.8,2530.4,0.45108332]
[1729812626709,3.99184514,2530.8,2530.5,0.7659]
[1729812628136,3.95149,2530.7,2530.4,0.45108332]
[1729812628503,0.04044365,2530.6,2530.4,0.45108332]
[1729812629113,0.04044365,2530.6,2530.5,0.07902535]
[1729812629313,0.04044365,2530.6,2530.3,4.71797]
[1729812629534,0.04044365,2530.6,2530.3,0.7659]
[1729812633329,3.99210365,2530.6,2530.3,0.7659]
[1729812633525,3.95166,2530.6,2530.3,0.7659]
[1729812633731,0.04060631,2530.5,2530.3,0.7659]
[1729812633917,0.04060631,2530.5,2530.3,2.06348361]
[1729812635958,3.95155,2530.7,2530.3,2.06348361]
[1729812636125,3.95168,2530.6,2530.3,0.7659]
[1729812636326,3.99231439,2530.6,2530.3,0.7659]
[1729812636549,3.95179,2530.5,2530.1,8.60801657]
[1729812636752,3.95179,2530.5,2530.2,0.07903264]
[1729812636963,0.04057824,2530.4,2530.2,0.07903264]
[1729812637168,0.04057824,2530.4,2530.2,5.02381155]
[1729812637330,3.9514,2530.8,2530.3,3.9521]
[1729812637661,3.9514,2530.8,2530.4,0.07902609]
[1729812637963,3.95148,2530.7,2530.4,0.07902609]
[1729812638362,3.95148,2530.7,2530.2,3.43781861]
[1729812638572,6.32578313,2530.6,2530.1,0.82562657]
[1729812638735,6.32578313,2530.6,2530.0,6.3978297]
[1729812638736,3.95194,2530.4,2530.0,6.3978297]
[1729812638935,3.95194,2530.4,2530.1,0.0790361]
[1729812639762,7.90397,2530.4,2530.0,2.4452697]
[1729812639963,0.7544,2530.6,2530.2,1.61964313]
[1729812640277,4.70535,2531.1,2530.6,4.78162]
[1729812640436,0.7544,2531.1,2530.7,3.95139]
[1729812640851,4.70526,2531.1,2530.7,3.95139]
[1729812641271,4.70526,2531.1,2530.8,0.07901553]
[1729812641570,0.7544,2531.1,2530.8,0.07901553]
[1729812641791,4.70527,2531.1,2530.8,0.07901553]
[1729812642770,4.70527,2531.1,2530.7,0.07901555]
[1729812643073,4.70527,2531.1,2530.7,0.56875562]
[1729812643570,3.95101,2531.0,2530.7,0.56875562]
[1729812643776,3.95101,2531.0,2530.6,4.78164]
[1729812644070,3.95101,2531.0,2530.7,0.07901713]
[1729812644274,3.95101,2531.0,2530.6,4.78164]
[1729812644481,3.95101,2531.0,2530.6,0.8301]
[1729812645188,3.95101,2531.0,2530.4,5.60881063]
[1729812645350,4.70587,2530.7,2530.3,0.82690063]
[1729812645547,3.9517,2530.6,2530.3,0.82690063]
[1729812645751,3.9517,2530.6,2530.4,0.07903058]
[1729812646889,3.9517,2530.6,2530.3,0.07903059]
[1729812648670,3.9517,2530.6,2530.2,0.8301]
[1729812649457,3.9517,2530.6,2530.3,0.07903064]
[1729812651099,0.04084122,2530.5,2530.3,0.07903064]
[1729812652221,3.99264122,2530.5,2530.2,0.8301]
[1729812652545,0.04084122,2530.5,2530.3,0.07903225]
[1729812659132,0.04084122,2530.5,2530.3,0.64785954]
[1729812659530,3.95125,2530.9,2530.4,4.77614]
[1729812659735,3.95125,2530.9,2530.5,0.07902189]
[1729812660348,3.95132,2530.8,2530.4,5.60294063]
[1729812660551,3.95132,2530.8,2530.4,6.73936552]
[1729812660717,3.95125,2530.9,2530.5,0.07902346]
[1729812660718,3.95118,2530.9,2530.5,0.07902346]
[1729812661261,3.95118,2530.9,2530.5,0.82690063]
[1729812663666,3.95135,2530.8,2530.5,0.82690063]
[1729812663864,0.8298,2530.6,2530.4,0.82690063]
[1729812664034,3.95178,2530.5,2530.4,0.82690063]
[1729812664367,3.95178,2530.5,2530.3,0.82690063]
[1729812665231,3.95178,2530.5,2530.3,0.90593306]
[1729812665637,0.8298,2530.6,2530.3,0.90593306]
[1729812665842,0.04067995,2530.5,2530.3,0.90593306]
[1729812666670,0.04067995,2530.5,2530.4,0.82690063]
[1729812670788,0.04067995,2530.5,2530.4,1.57900063]
[1729812671097,0.04063113,2530.5,2530.4,1.57900063]
[1729812671660,0.04063113,2530.5,2530.4,0.82690063]
[1729812671861,3.95164,2530.6,2530.4,0.82690063]
[1729812672106,0.04063113,2530.5,2530.4,0.82690063]
[1729812672264,3.99241113,2530.5,2530.4,0.82690063]
[1729812672588,0.04063113,2530.5,2530.4,0.82690063]
[1729812676268,3.99241113,2530.5,2530.4,0.82690063]
[1729812678925,0.04063113,2530.5,2530.4,0.82690063]
[1729812681599,3.95154,2530.7,2530.4,1.24035095]
[1729812681888,3.95154,2530.7,2530.5,0.90805255]
[1729812682826,3.95129,2530.9,2530.5,0.90805255]
[1729812683031,3.95129,2530.9,2530.7,0.8057]
[1729812683385,3.95129,2530.9,2530.7,1.63472508]
[1729812685097,3.95126,2530.9,2530.7,1.63472508]
[1729812685488,3.9509,2531.1,2530.7,3.25421975]
[1729812685731,3.95061,2531.3,2531.0,1.61949467]
[1729812685885,3.95061,2531.3,2531.0,2.42519467]
[1729812686235,3.95022,2531.5,2531.1,1.61949467]
[1729812686429,4.76027,2531.6,2531.2,1.69849921]
[1729812686616,3.95001,2531.7,2531.4,1.61949467]
[1729812687027,3.95001,2531.7,2531.4,0.07899798]
[1729812687196,7.90003,2531.7,2531.4,0.07899798]
[1729812687697,7.90003,2531.7,2531.3,2.42519467]
[1729812687896,3.95001,2531.7,2531.5,1.61949467]
[1729812688431,7.90004,2531.7,2531.4,1.69849265]
[1729812688728,3.95001,2531.7,2531.3,3.71052449]
[1729812688933,7.90008,2531.7,2531.3,4.53954957]
[1729812689123,3.95001,2531.7,2531.3,2.09102982]
[1729812689294,3.95011,2531.6,2531.3,2.09102982]
[1729812690928,3.95031,2531.5,2531.3,1.28532982]
[1729812691119,3.95031,2531.5,2531.1,3.25421975]
[1729812691531,3.95031,2531.5,2531.1,5.42519467]
[1729812691708,5.56951467,2531.7,2531.1,10.20506975]
[1729812692041,3.95008,2531.6,2531.2,1.61949467]
[1729812692419,0.03846741,2531.5,2531.2,1.61949467]
[1729812692625,0.03846741,2531.5,2531.3,1.41557198]
[1729812694324,0.03846741,2531.5,2531.4,0.07899863]
[1729812694508,4.76007,2531.8,2531.4,0.88469863]
[1729812694715,0.03892839,2531.7,2531.4,0.88469863]
[1729812694914,3.94999,2531.7,2531.4,1.59272653]
[1729812695151,0.03890459,2531.6,2531.4,1.59272653]
[1729812695346,0.03890459,2531.6,2531.4,1.6717236]
[1729812695651,0.03890459,2531.6,2531.4,1.59272653]
[1729812696837,0.03890459,2531.6,2531.4,1.6717236]
[1729812699458,0.03890459,2531.6,2531.4,0.8057]
[1729812699817,3.98908459,2531.6,2531.4,0.8057]
[1729812700017,3.98908459,2531.6,2531.1,8.57022467]
[1729812700220,3.95023,2531.5,2531.2,0.7691]
[1729812700514,0.03882885,2531.4,2531.2,0.7691]
[1729812700736,0.84602885,2531.4,2531.0,2.83847603]
[1729812700941,0.84602885,2531.4,2531.0,4.4579707]
[1729812701147,0.84602885,2531.4,2531.0,6.78940603]
[1729812701655,0.84602885,2531.4,2531.0,8.4089007]
[1729812702460,4.79640885,2531.4,2531.0,2.83847603]
[1729812702623,4.79640885,2531.4,2531.0,4.4579707]
[1729812702825,4.79640885,2531.4,2531.0,5.54950462]
[1729812703762,4.79640885,2531.4,2531.0,3.93000995]
[1729812704258,3.9506,2531.3,2531.0,3.93000995]
[1729812704433,4.79641885,2531.4,2531.0,3.93000995]
[1729812704761,8.70807,2531.4,2531.0,3.93000995]
[1729812704947,0.03752614,2531.3,2531.0,3.93000995]
[1729812706461,0.03752614,2531.3,2531.0,1.86063392]
[1729812707619,0.03752614,2531.3,2531.0,3.48012859]
[1729812708970,0.03752614,2531.3,2531.1,0.07900592]
[1729812711889,0.03752614,2531.3,2531.0,3.48012859]
[1729812712435,0.03752614,2531.3,2531.0,1.86063392]
[1729812713329,0.03752614,2531.3,2531.0,3.48012859]
[1729812713934,0.03752614,2531.3,2531.0,1.86063392]
[1729812714334,0.03752614,2531.3,2531.0,3.48012859]
[1729812717278,0.03752614,2531.3,2531.1,0.82212402]
[1729812717974,0.03752614,2531.3,2531.1,2.44161869]
[1729812718157,4.70625,2531.8,2531.3,0.7801]
[1729812718363,3.95007,2531.6,2531.4,0.63502847]
[1729812718537,0.0379077,2531.5,2531.4,0.07899621]
[1729812718876,3.94993,2531.7,2531.4,0.07899621]
[1729812719079,0.0379077,2531.5,2531.4,0.07899621]
[1729812719373,0.0379077,2531.5,2531.4,0.7219173]
[1729812719374,0.03798246,2531.5,2531.4,0.7219173]
[1729812719606,3.94993,2531.7,2531.4,0.7219173]
[1729812719878,0.03798671,2531.5,2531.4,0.7219173]
[1729812720034,3.94993,2531.7,2531.4,0.7219173]
[1729812720235,0.03798671,2531.5,2531.4,0.7219173]
[1729812720477,3.94993,2531.7,2531.4,0.7219173]
[1729812720677,0.03798671,2531.5,2531.4,4.6722373]
[1729812720881,3.94979,2531.8,2531.3,4.7305]
[1729812721091,0.03804247,2531.5,2531.3,0.7801]
[1729812721250,4.70634,2531.7,2531.1,5.55986508]
[1729812721453,4.70634,2531.7,2531.1,4.73084]
[1729812721454,0.03801907,2531.4,2531.1,4.73084]
[1729812721648,4.70634,2531.7,2531.1,4.73084]
[1729812721988,3.98814517,2531.6,2531.1,6.1059686]
[1729812722189,3.98814517,2531.6,2531.1,7.72546327]
[1729812722688,3.98814517,2531.6,2531.1,6.1059686]
[1729812723349,0.03807517,2531.6,2531.1,7.72546327]
[1729812723556,1.65756984,2531.6,2531.1,4.3751286]
[1729812723779,4.70686,2531.4,2531.1,1.3751286]
[1729812723953,0.03799101,2531.3,2531.1,1.3751286]
[1729812725295,3.98854101,2531.3,2531.1,1.3751286]
[1729812725586,3.98854101,2531.3,2530.9,5.56018508]
[1729812726157,3.98854101,2531.3,2530.9,7.17967975]
[1729812726484,3.98854101,2531.3,2531.0,0.82902508]
[1729812726870,0.03799101,2531.3,2531.0,4.78002508]
[1729812727588,0.03799101,2531.3,2531.1,0.82902508]
[1729812728295,3.98853101,2531.3,2531.1,0.82902508]
[1729812729867,6.37008467,2531.2,2531.1,0.82902508]
[1729812730070,3.95085,2531.1,2530.8,0.82902508]
[1729812730457,0.03786224,2531.0,2530.8,0.82902508]
[1729812730659,0.03786224,2531.0,2530.9,0.82902508]
[1729812731354,3.98886224,2531.0,2530.8,0.82902508]
[1729812731554,0.03786224,2531.0,2530.8,0.82902508]
[1729812732351,0.03703703,2531.0,2530.8,0.82902508]
[1729812733558,3.98804703,2531.0,2530.7,0.82902508]
[1729812733863,4.75106,2530.9,2530.7,1.75844628]
[1729812734260,0.03766733,2530.8,2530.7,0.82902508]
[1729812734784,3.98897733,2530.8,2530.7,0.82902508]
[1729812735494,0.03766733,2530.8,2530.6,0.82902508]
[1729812735699,0.03766733,2530.8,2530.7,0.82902508]
[1729812735902,4.75106,2530.9,2530.7,0.82902508]
[1729812736069,3.98897733,2530.8,2530.7,0.82902508]
[1729812736274,3.95147,2530.7,2530.6,0.82902508]
[1729812736462,3.98898733,2530.8,2530.5,2.44851975]
[1729812736664,3.98898733,2530.8,2530.6,0.82902508]
[1729812736665,0.03763926,2530.7,2530.6,0.82902508]
[1729812737071,3.95132,2530.8,2530.6,0.82902508]
[1729812737274,0.03763926,2530.7,2530.6,0.82902508]
[1729812737607,3.95151,2530.7,2530.5,3.85493195]
[1729812737788,3.98914926,2530.7,2530.5,0.82902508]
[1729812738163,0.03763926,2530.7,2530.5,0.82902508]
[1729812738401,7.90278,2530.8,2530.5,2.52754589]
[1729812738599,0.03763926,2530.7,2530.5,2.52754589]
[1729812738911,3.95132,2530.8,2530.5,2.52754589]
[1729812739111,0.03761119,2530.6,2530.5,2.52754589]
[1729812739314,7.90274,2530.8,2530.5,3.29954257]
[1729812739515,0.03761119,2530.6,2530.5,2.52754589]
[1729812740112,3.95132,2530.8,2530.5,2.52754589]
[1729812740612,0.03763926,2530.7,2530.5,1.69852081]
[1729812741209,0.03761119,2530.6,2530.5,2.52754589]
[1729812741506,0.03761119,2530.6,2530.5,0.07902614]
[1729812741722,3.95154,2530.7,2530.5,0.07902614]
[1729812741902,0.03761119,2530.6,2530.4,0.82902508]
[1729812742089,0.03761119,2530.6,2530.4,2.44851975]
[1729812742292,0.03761119,2530.6,2530.4,2.5275476]
[1729812742674,0.03761119,2530.6,2530.4,2.44851975]
[1729812743773,0.03761119,2530.6,2530.5,2.44851975]
[1729812743992,3.95138,2530.8,2530.5,2.44851975]
[1729812744211,0.03739787,2530.7,2530.6,1.61949467]
[1729812744678,3.95138,2530.8,2530.5,2.52754612]
[1729812744879,0.03739756,2530.7,2530.5,2.52754612]
[1729812745108,0.03739756,2530.7,2530.5,1.69852104]
[1729812745409,0.03736949,2530.6,2530.5,1.69852104]
[1729812745618,0.03736949,2530.6,2530.5,2.52754612]
[1729812745797,3.95138,2530.8,2530.5,2.52754612]
[1729812746006,0.03739756,2530.7,2530.5,2.52754612]
[1729812746410,3.95138,2530.8,2530.5,2.52754612]
[1729812746718,0.03736949,2530.6,2530.5,2.52754612]
[1729812746919,3.95138,2530.8,2530.5,3.41691983]
[1729812747116,0.03736949,2530.6,2530.5,2.52754612]
[1729812747621,3.95138,2530.8,2530.5,1.69852104]
[1729812748123,0.03743009,2530.7,2530.5,0.07902637]
[1729812748293,0.03743009,2530.7,2530.5,1.69852104]
[1729812748486,3.95138,2530.8,2530.5,1.69852104]
[1729812748691,0.03740202,2530.6,2530.5,0.07902637]
[1729812749001,0.03740202,2530.6,2530.5,0.96840908]
[1729812749232,7.90279,2530.8,2530.5,1.79743416]
[1729812749391,0.03740202,2530.6,2530.4,3.62241975]